{"text_format":"3","workbook":"xlsx","n_sheets":9,"sheets":["Реч.разв.к 4г ч2","Физ.разв. к 4г ч2","Физ.разв. к 4г ч1","Соц.ком. к 4г","Позн.разв. к 4г ч1","Позн.разв. к 4г ч2","Реч.разв.к 4г ч1","Худ.эст.к 4г ч1","Худ.эст.к 4г ч2"],"read":"whole","date_system":"1900"}

{"sheet":"Реч.разв.к 4г ч2","index":0,"n_rows":43,"n_cols":14,"rows_kept":43,"merged":[[0,0,0,1],[0,4,0,5],[0,7,0,15],[1,0,1,3],[1,4,1,5],[1,7,1,15],[2,0,2,3],[3,0,3,1],[3,5,3,6],[3,7,3,10],[4,0,4,1],[4,5,4,6],[4,7,4,10],[5,0,9,0],[5,1,9,1],[5,4,5,12],[5,13,9,13],[6,4,6,12],[7,4,7,6],[7,7,7,10],[8,4,9,4],[8,5,9,5],[8,6,9,6],[8,7,9,7],[8,8,9,8],[8,9,9,9],[8,10,9,10],[8,11,9,11],[8,12,9,12],[40,1,40,12],[42,1,42,13]]}
["Финальная диагностика",{"$nulls":3},"ГРУППА МЛАДШЕГО ВОЗРАСТА (3-4 года)",null,null,"Период проведения - окончание посещения группы младшего возраста"]
["Стартовая диагностика",{"$nulls":3},"ГРУППА СРЕДНЕГО ВОЗРАСТА (4-5 лет)",null,null,"Период проведения - начало уч. года (сентябрь) или начало посещения группы среднего возраста"]
["*- не диагностируется в данном возрасте"]
["Сформированность показателя",{"$nulls":3},"«2» показатель сформирован","«1» показатель в стадии формирования",null,"«0» показатель не сформирован"]
["Средний уровень",{"$nulls":3},"1,8 - 2,0 норма-высокий","1,0 - 1,7 норма - средний",null,"0,0 - 0,9 ниже нормы"]
["№","Ф.И. ребенка",{"$nulls":11},"СРЕДНИЙ ПОКАЗАТЕЛЬ ПО РЕБЕНКУ"]
[]
[{"$nulls":4},"Формирование словаря",null,null,"Связная речь",{"$nulls":3},"ЧХЛ","Подготовка к обучению грамоте"]
[{"$nulls":4},"Ребенок имеет представления о предметах ближайшего окружения, частях предмета, качествах предмета, действиях с предметом","Ребенок понимает обобщающие понятия: мебель, одежда и др.","Ребенок имеет представления, может рассказать о гигиенических процессах (умывание, одевание, купание и т.д.)","Ребенок владеет диалогической речью: отвечает на вопросы и обращения, сообщает о своих впечатлениях, желаниях, задает вопросы","Ребенок владеет монологической речью: составляет рассказ по картинке из 3-4 предложений с опорой на наводящие вопросы","Ребенок рассказывает содержание хорошо знакомых сказок с опорой на наводящие вопросы","Ребенок читает наизусть короткие стихотворения","Ребенок внимательно слушает чтение детских книг, рассматривает иллюстрации","Ребенок понимает термины «слово», «звук», вслушивается в звучание слова"]
[]
[1,{"$nulls":12},{"$f":"AVERAGE(E11:M11)","v":{"$error":"#DIV/0!"}}]
[2,{"$nulls":12},{"$f":"AVERAGE(E12:M12)","v":{"$error":"#DIV/0!"}}]
[3,{"$nulls":12},{"$f":"AVERAGE(E13:M13)","v":{"$error":"#DIV/0!"}}]
[4,{"$nulls":12},{"$f":"AVERAGE(E14:M14)","v":{"$error":"#DIV/0!"}}]
[5,{"$nulls":12},{"$f":"AVERAGE(E15:M15)","v":{"$error":"#DIV/0!"}}]
[6,{"$nulls":12},{"$f":"AVERAGE(E16:M16)","v":{"$error":"#DIV/0!"}}]
[7,{"$nulls":12},{"$f":"AVERAGE(E17:M17)","v":{"$error":"#DIV/0!"}}]
[8,{"$nulls":12},{"$f":"AVERAGE(E18:M18)","v":{"$error":"#DIV/0!"}}]
[9,{"$nulls":12},{"$f":"AVERAGE(E19:M19)","v":{"$error":"#DIV/0!"}}]
[10,{"$nulls":12},{"$f":"AVERAGE(E20:M20)","v":{"$error":"#DIV/0!"}}]
[11,{"$nulls":12},{"$f":"AVERAGE(E21:M21)","v":{"$error":"#DIV/0!"}}]
[12,{"$nulls":12},{"$f":"AVERAGE(E22:M22)","v":{"$error":"#DIV/0!"}}]
[13,{"$nulls":12},{"$f":"AVERAGE(E23:M23)","v":{"$error":"#DIV/0!"}}]
[14,{"$nulls":12},{"$f":"AVERAGE(E24:M24)","v":{"$error":"#DIV/0!"}}]
[15,{"$nulls":12},{"$f":"AVERAGE(E25:M25)","v":{"$error":"#DIV/0!"}}]
[16,{"$nulls":12},{"$f":"AVERAGE(E26:M26)","v":{"$error":"#DIV/0!"}}]
[17,{"$nulls":12},{"$f":"AVERAGE(E27:M27)","v":{"$error":"#DIV/0!"}}]
[18,{"$nulls":12},{"$f":"AVERAGE(E28:M28)","v":{"$error":"#DIV/0!"}}]
[19,{"$nulls":12},{"$f":"AVERAGE(E29:M29)","v":{"$error":"#DIV/0!"}}]
[20,{"$nulls":12},{"$f":"AVERAGE(E30:M30)","v":{"$error":"#DIV/0!"}}]
[21,{"$nulls":12},{"$f":"AVERAGE(E31:M31)","v":{"$error":"#DIV/0!"}}]
[22,{"$nulls":12},{"$f":"AVERAGE(E32:M32)","v":{"$error":"#DIV/0!"}}]
[23,{"$nulls":12},{"$f":"AVERAGE(E33:M33)","v":{"$error":"#DIV/0!"}}]
[24,{"$nulls":12},{"$f":"AVERAGE(E34:M34)","v":{"$error":"#DIV/0!"}}]
[25,{"$nulls":12},{"$f":"AVERAGE(E35:M35)","v":{"$error":"#DIV/0!"}}]
[26,{"$nulls":12},{"$f":"AVERAGE(E36:M36)","v":{"$error":"#DIV/0!"}}]
[27,{"$nulls":12},{"$f":"AVERAGE(E37:M37)","v":{"$error":"#DIV/0!"}}]
[28,{"$nulls":12},{"$f":"AVERAGE(E38:M38)","v":{"$error":"#DIV/0!"}}]
[29,{"$nulls":12},{"$f":"AVERAGE(E39:M39)","v":{"$error":"#DIV/0!"}}]
[30,{"$nulls":12},{"$f":"AVERAGE(E40:M40)","v":{"$error":"#DIV/0!"}}]
[null,"СРЕДНИЙ ПОКАЗАТЕЛЬ ПО ГРУППЕ",{"$nulls":11},{"$f":"AVERAGE(N11:N40)","v":{"$error":"#DIV/0!"}}]
[null,"Ф.И.О, должность специалиста(ов)____________________________________________________________________________________________________________________________________________________________________________________________________________________________________"]
[null,"© Автор-составитель Кулекина И.А., СПб, 2023"]

{"sheet":"Физ.разв. к 4г ч2","index":1,"n_rows":43,"n_cols":14,"rows_kept":43,"merged":[[0,0,0,1],[0,4,0,6],[0,7,0,10],[1,0,1,3],[1,4,1,6],[1,7,1,11],[2,0,2,3],[3,0,3,1],[3,5,3,6],[3,7,3,8],[4,0,4,1],[4,5,4,6],[4,7,4,8],[5,0,9,0],[5,1,9,1],[5,4,5,12],[5,13,9,13],[6,4,6,12],[7,4,7,7],[7,8,7,11],[7,12,8,12],[8,5,8,7],[40,1,40,12],[41,1,41,13],[42,1,42,13]]}
["Финальная диагностика",{"$nulls":3},"ГРУППА МЛАДШЕГО ВОЗРАСТА (3-4 года)",null,null,"Период проведения - окончание посещения группы младшего возраста"]
["Стартовая диагностика",{"$nulls":3},"ГРУППА СРЕДНЕГО ВОЗРАСТА (4-5 лет)",null,null,"Период проведения - начало уч. года (сентябрь) или начало посещения группы среднего возраста"]
["*- не диагностируется в данном возрасте"]
["Сформированность показателя",{"$nulls":3},"«2» показатель сформирован","«1» показатель в стадии формирования",null,"«0» показатель не сформирован"]
["Средний уровень",{"$nulls":3},"1,8 - 2,0 норма-высокий","1,0 - 1,7 норма - средний",null,"0,0 - 0,9 ниже нормы"]
["№","Ф.И. ребенка",null,null,"ОБРАЗОВАТЕЛЬНАЯ ОБЛАСТЬ «ФИЗИЧЕСКОЕ РАЗВИТИЕ»",{"$nulls":8},"СРЕДНИЙ ПОКАЗАТЕЛЬ ПО РЕБЕНКУ"]
[{"$nulls":4},"Показатели возможных достижений (возрастные характеристики) к 4 годам"]
[{"$nulls":4},"Мелкая моторика",{"$nulls":3},"КГН",{"$nulls":3},"ЗОЖ"]
[{"$nulls":4},"Координация рук и глаз","Графические навыки",null,null,"Навыки соблюдения чистоты тела (правила личной гигиены)","Навыки культуры еды (прием пищи) ","Навыки поддержания порядка (правила поведения в быту) ","Навыки ухода за собой (одевание, раздевание) "]
[{"$nulls":4},"Ребенок может выложить из счетных палочек по образцу простые изображения","Ребенок обводит изображение по контуру с небольшими отклонениями","Ребенок при раскрашивании крупного изображения почти не заходит за контур","Ребенок правильно держит карандаш","Ребенок самостоятельно выполняет элементарные правила ухода за собой (вытирание попы, мытье рук, умывание, чистка зубов, полоскание рта)","Ребенок самостоятельно ест, вытирает рот после еды","Ребенок соблюдает порядок и чистоту, убирает за собой игрушки","Ребенок самостоятельно одевается, раздевается","Ребенок имеет первичные представления о факторах, положительно влияющих на здоровье, о роли чистоты"]
[1,{"$nulls":12},{"$f":"AVERAGE(E11:M11)","v":{"$error":"#DIV/0!"}}]
[2,{"$nulls":12},{"$error":"#DIV/0!"}]
[3,{"$nulls":12},{"$error":"#DIV/0!"}]
[4,{"$nulls":12},{"$error":"#DIV/0!"}]
[5,{"$nulls":12},{"$error":"#DIV/0!"}]
[6,{"$nulls":12},{"$error":"#DIV/0!"}]
[7,{"$nulls":12},{"$error":"#DIV/0!"}]
[8,{"$nulls":12},{"$error":"#DIV/0!"}]
[9,{"$nulls":12},{"$error":"#DIV/0!"}]
[10,{"$nulls":12},{"$error":"#DIV/0!"}]
[11,{"$nulls":12},{"$error":"#DIV/0!"}]
[12,{"$nulls":12},{"$error":"#DIV/0!"}]
[13,{"$nulls":12},{"$error":"#DIV/0!"}]
[14,{"$nulls":12},{"$error":"#DIV/0!"}]
[15,{"$nulls":12},{"$error":"#DIV/0!"}]
[16,{"$nulls":12},{"$error":"#DIV/0!"}]
[17,{"$nulls":12},{"$error":"#DIV/0!"}]
[18,{"$nulls":12},{"$error":"#DIV/0!"}]
[19,{"$nulls":12},{"$error":"#DIV/0!"}]
[20,{"$nulls":12},{"$error":"#DIV/0!"}]
[21,{"$nulls":12},{"$error":"#DIV/0!"}]
[22,{"$nulls":12},{"$error":"#DIV/0!"}]
[23,{"$nulls":12},{"$error":"#DIV/0!"}]
[24,{"$nulls":12},{"$error":"#DIV/0!"}]
[25,{"$nulls":12},{"$error":"#DIV/0!"}]
[26,{"$nulls":12},{"$error":"#DIV/0!"}]
[27,{"$nulls":12},{"$error":"#DIV/0!"}]
[28,{"$nulls":12},{"$error":"#DIV/0!"}]
[29,{"$nulls":12},{"$error":"#DIV/0!"}]
[30,{"$nulls":12},{"$error":"#DIV/0!"}]
[null,"СРЕДНИЙ ПОКАЗАТЕЛЬ ПО ГРУППЕ",{"$nulls":11},{"$f":"AVERAGE(N11:N40)","v":{"$error":"#DIV/0!"}}]
[null,"Ф.И.О, должность специалиста(ов)____________________________________________________________________________________________________________________________________________________________________________________________________________________________________"]
[null,"© Автор-составитель Кулекина И.А., СПб, 2023"]

{"sheet":"Физ.разв. к 4г ч1","index":2,"n_rows":43,"n_cols":16,"rows_kept":43,"merged":[[0,0,0,1],[0,4,0,6],[0,7,0,10],[1,0,1,3],[1,4,1,6],[1,7,1,11],[2,0,2,3],[3,0,3,1],[3,5,3,6],[4,0,4,1],[4,5,4,6],[5,0,9,0],[5,1,9,1],[5,4,5,14],[5,15,9,15],[6,4,6,14],[7,4,7,11],[7,12,8,12],[7,13,9,13],[7,14,8,14],[8,4,8,5],[40,1,40,14],[41,1,41,15],[42,1,42,15]]}
["Финальная диагностика",{"$nulls":3},"ГРУППА МЛАДШЕГО ВОЗРАСТА (3-4 года)",null,null,"Период проведения - окончание посещения группы младшего возраста"]
["Стартовая диагностика",{"$nulls":3},"ГРУППА СРЕДНЕГО ВОЗРАСТА (4-5 лет)",null,null,"Период проведения - начало уч. года (сентябрь) или начало посещения группы среднего возраста"]
["*- не диагностируется в данном возрасте"]
["Сформированность показателя",{"$nulls":3},"«2» показатель сформирован","«1» показатель в стадии формирования",null,"«0» показатель не сформирован"]
["Средний уровень",{"$nulls":3},"1,8 - 2,0 норма-высокий","1,0 - 1,7 норма - средний",null,"0,0 - 0,9 ниже нормы"]
["№","Ф.И. ребенка",null,null,"ОБРАЗОВАТЕЛЬНАЯ ОБЛАСТЬ «ФИЗИЧЕСКОЕ РАЗВИТИЕ»",{"$nulls":10},"СРЕДНИЙ ПОКАЗАТЕЛЬ ПО РЕБЕНКУ"]
[{"$nulls":4},"Показатели возможных достижений (возрастные характеристики) к 4 годам"]
[{"$nulls":4},"Крупная моторика. ОВД, ОРУ",{"$nulls":7},"Подвижные игры","Спортивные игры*","Спортивные упражнения"]
[{"$nulls":4},"Бросание, катание, ловля, метание",null,"Ползанье, лазанье","Ходьба","Бег","Прыжки","Равновесие","Строевые упражнения"]
[{"$nulls":4},"Ребенок прокатывает большой мяч двумя руками вокруг предмета, скатывает мяч по наклонной доске, катит мяч другому, подбрасывает мяч вверх, бросает мяч о пол, перебрасывает мяч через сетку","Ребенок бросает мешочек в горизонтальную цель, метает вдаль","Ребенок ползает по гимнастической скамейке, проползает на четвереньках под дугами, влезает на лесенку-стремянку или гимнастическую стенку","Ребенок ходит в заданном направлении, по ориентирам, на носках, высоко поднимая колени, перешагивая через предметы, с остановкой по сигналу, парами, с выполнением заданий, в чередовании с бегом","Ребенок бегает группами и по одному, врассыпную, со сменой темпа, со сменой направления","Ребенок прыгает на двух ногах, на одной ноге, на месте, продвигаясь вперед, через линию, в длину с места, из обруча в обруч","Ребенок ходит по шуру, плоскому обручу","Ребенок выполняет построение в колонну по одному, в шеренгу, в круг по ориентирам, перестроение в колонну по два, врассыпную, смыкание и размыкание обычным шагом, повороты направо и налево переступанием","Ребенок стремится к выполнению правил и основных ролей в игре, умеет действовать сообща",null,"Ребенок умеет кататься на трехколесном велосипеде, на санках, на лыжах"]
[1,{"$nulls":12},"*",null,{"$f":"AVERAGE(F11:O11)","v":{"$error":"#DIV/0!"}}]
[2,{"$nulls":12},"*",null,{"$f":"AVERAGE(F12:O12)","v":{"$error":"#DIV/0!"}}]
[3,{"$nulls":12},"*",null,{"$f":"AVERAGE(F13:O13)","v":{"$error":"#DIV/0!"}}]
[4,{"$nulls":12},"*",null,{"$error":"#DIV/0!"}]
[5,{"$nulls":12},"*",null,{"$error":"#DIV/0!"}]
[6,{"$nulls":12},"*",null,{"$error":"#DIV/0!"}]
[7,{"$nulls":12},"*",null,{"$error":"#DIV/0!"}]
[8,{"$nulls":12},"*",null,{"$error":"#DIV/0!"}]
[9,{"$nulls":12},"*",null,{"$error":"#DIV/0!"}]
[10,{"$nulls":12},"*",null,{"$error":"#DIV/0!"}]
[11,{"$nulls":12},"*",null,{"$error":"#DIV/0!"}]
[12,{"$nulls":12},"*",null,{"$error":"#DIV/0!"}]
[13,{"$nulls":12},"*",null,{"$error":"#DIV/0!"}]
[14,{"$nulls":12},"*",null,{"$error":"#DIV/0!"}]
[15,{"$nulls":12},"*",null,{"$error":"#DIV/0!"}]
[16,{"$nulls":12},"*",null,{"$error":"#DIV/0!"}]
[17,{"$nulls":12},"*",null,{"$error":"#DIV/0!"}]
[18,{"$nulls":12},"*",null,{"$error":"#DIV/0!"}]
[19,{"$nulls":12},"*",null,{"$error":"#DIV/0!"}]
[20,{"$nulls":12},"*",null,{"$error":"#DIV/0!"}]
[21,{"$nulls":12},"*",null,{"$error":"#DIV/0!"}]
[22,{"$nulls":12},"*",null,{"$error":"#DIV/0!"}]
[23,{"$nulls":12},"*",null,{"$error":"#DIV/0!"}]
[24,{"$nulls":12},"*",null,{"$error":"#DIV/0!"}]
[25,{"$nulls":12},"*",null,{"$error":"#DIV/0!"}]
[26,{"$nulls":12},"*",null,{"$error":"#DIV/0!"}]
[27,{"$nulls":12},"*",null,{"$f":"AVERAGE(F37:O37)","v":{"$error":"#DIV/0!"}}]
[28,{"$nulls":12},"*",null,{"$error":"#DIV/0!"}]
[29,{"$nulls":12},"*",null,{"$error":"#DIV/0!"}]
[30,{"$nulls":12},"*",null,{"$error":"#DIV/0!"}]
[null,"СРЕДНИЙ ПОКАЗАТЕЛЬ ПО ГРУППЕ",{"$nulls":13},{"$f":"AVERAGE(P11:P40)","v":{"$error":"#DIV/0!"}}]
[null,"Ф.И.О, должность специалиста(ов)____________________________________________________________________________________________________________________________________________________________________________________________________________________________________"]
[null,"© Автор-составитель Кулекина И.А., СПб, 2023"]

{"sheet":"Соц.ком. к 4г","index":3,"n_rows":43,"n_cols":25,"rows_kept":43,"merged":[[0,0,0,1],[0,4,0,6],[0,9,0,15],[1,0,1,3],[1,4,1,6],[2,0,2,3],[3,0,3,1],[3,4,3,5],[3,6,3,8],[3,9,3,10],[4,0,4,1],[4,4,4,5],[4,6,4,8],[4,9,4,10],[5,0,9,0],[5,1,9,1],[5,4,5,23],[5,24,9,24],[6,4,6,23],[7,4,7,14],[7,15,8,16],[7,17,8,18],[7,19,7,23],[8,7,8,8],[8,11,8,14],[8,19,8,23],[40,1,40,23],[41,1,41,24],[42,1,42,24]]}
["Финальная диагностика",{"$nulls":3},"ГРУППА МЛАДШЕГО ВОЗРАСТА (3-4 года)",{"$nulls":4},"Период проведения - окончание посещения группы младшего возраста"]
["Стартовая диагностика",{"$nulls":3},"ГРУППА СРЕДНЕГО ВОЗРАСТА (4-5 лет)",{"$nulls":4},"Период проведения - начало уч. года (сентябрь) или начало посещения группы среднего возраста"]
["*- не диагностируется в данном возрасте"]
["Сформированность показателя",{"$nulls":3},"«2» показатель сформирован",null,"«1» показатель в стадии формирования",null,null,"«0» показатель не сформирован"]
["Средний уровень",{"$nulls":3},"1,8 - 2,0 норма-высокий",null,"1,0 - 1,7 норма - средний",null,null,"0,0 - 0,9 ниже нормы"]
["№","Ф.И. ребенка",null,null,"ОБРАЗОВАТЕЛЬНАЯ ОБЛАСТЬ «СОЦИАЛЬНО-КОММУНИКАТИВНОЕ  РАЗВИТИЕ»",{"$nulls":19},"СРЕДНИЙ ПОКАЗАТЕЛЬ ПО РЕБЕНКУ"]
[{"$nulls":4},"Показатели возможных достижений (возрастные характеристики) к 4 годам"]
[{"$nulls":4},"Сфера социальных отношений",{"$nulls":10},"Область формирования основ гражданственности и патриотизма",null,"Сфера трудового воспитания",null,"Область формирования основ безопасного поведения"]
[{"$nulls":4},"Отношение к самому себе","Отношение к сверстникам","Отношение к взрослым","Эмоции",null,"Поведение","Семья","Игровое поведение",{"$nulls":7},"Ребенок знает/ соблюдает элементарные правила безопасного использования, обращения "]
[{"$nulls":4},"Ребенок знает свое имя, пол, возраст, говорит о себе в первом лице","Ребенок владеет простыми способами общения и взаимодействия: обращается к детям по именам, договаривается о совместных действиях, вступает в парное общение","Ребенок проявляет доброе отношение и заботу к знакомым взрослым","Ребенок различает основные эмоции (радость, печаль, грусть, гнев, страх, удивление), понимает ярко выраженные эмоциональные состояния","Ребенок проявляет эмпатию по отношению к другим","Ребенок выполняет элементарные правила культуры поведения (здоровается, прощается, благодарит)","Ребенок проявляет доброе отношение и заботу о членах семьи, близком окружении","Ребенок взаимодействует со сверстниками в игре","Ребенок принимает на себя роль и действует от имени героя, строит ролевые высказывания","Ребенок разворачивает несложный игровой сюжет из нескольких эпизодов","Ребенок в дидактических играх действует в рамках правил","Ребенок знает название населенного пункта, в котором живет","Ребенок называет любимые места времяпрепровождения в населенном пункте, в котором живет","Ребенок имеет первоначальные представления о хозяйственно-бытовом труде взрослых дома и в группе","Ребенок убирает своё рабочее место после продуктивных видов деятельности","бытовых предметов","с животными","в группе","на площадке","с растениями"]
[1,{"$nulls":23},{"$f":"AVERAGE(F11:X11)","v":{"$error":"#DIV/0!"}}]
[2,{"$nulls":23},{"$error":"#DIV/0!"}]
[3,{"$nulls":23},{"$error":"#DIV/0!"}]
[4,{"$nulls":23},{"$error":"#DIV/0!"}]
[5,{"$nulls":23},{"$error":"#DIV/0!"}]
[6,{"$nulls":23},{"$error":"#DIV/0!"}]
[7,{"$nulls":23},{"$error":"#DIV/0!"}]
[8,{"$nulls":23},{"$error":"#DIV/0!"}]
[9,{"$nulls":23},{"$error":"#DIV/0!"}]
[10,{"$nulls":23},{"$error":"#DIV/0!"}]
[11,{"$nulls":23},{"$error":"#DIV/0!"}]
[12,{"$nulls":23},{"$error":"#DIV/0!"}]
[13,{"$nulls":23},{"$error":"#DIV/0!"}]
[14,{"$nulls":23},{"$error":"#DIV/0!"}]
[15,{"$nulls":23},{"$error":"#DIV/0!"}]
[16,{"$nulls":23},{"$error":"#DIV/0!"}]
[17,{"$nulls":23},{"$error":"#DIV/0!"}]
[18,{"$nulls":23},{"$error":"#DIV/0!"}]
[19,{"$nulls":23},{"$error":"#DIV/0!"}]
[20,{"$nulls":23},{"$error":"#DIV/0!"}]
[21,{"$nulls":23},{"$error":"#DIV/0!"}]
[22,{"$nulls":23},{"$error":"#DIV/0!"}]
[23,{"$nulls":23},{"$error":"#DIV/0!"}]
[24,{"$nulls":23},{"$error":"#DIV/0!"}]
[25,{"$nulls":23},{"$error":"#DIV/0!"}]
[26,{"$nulls":23},{"$error":"#DIV/0!"}]
[27,{"$nulls":23},{"$error":"#DIV/0!"}]
[28,{"$nulls":23},{"$error":"#DIV/0!"}]
[29,{"$nulls":23},{"$error":"#DIV/0!"}]
[30,{"$nulls":23},{"$error":"#DIV/0!"}]
[null,"СРЕДНИЙ ПОКАЗАТЕЛЬ ПО ГРУППЕ",{"$nulls":22},{"$f":"AVERAGE(Y11:Y40)","v":{"$error":"#DIV/0!"}}]
[null,"Ф.И.О, должность специалиста(ов)____________________________________________________________________________________________________________________________________________________________________________________________________________________________________"]
[null,"© Автор-составитель Кулекина И.А., СПб, 2023"]

{"sheet":"Позн.разв. к 4г ч1","index":4,"n_rows":44,"n_cols":17,"rows_kept":44,"merged":[[0,1,0,2],[0,5,0,7],[0,8,0,14],[1,1,1,4],[1,5,1,7],[1,8,1,14],[2,1,2,4],[3,1,3,2],[3,5,3,6],[3,7,3,10],[3,11,3,12],[4,1,4,2],[4,5,4,6],[4,7,4,10],[4,11,4,12],[5,0,10,0],[5,1,10,1],[5,4,5,15],[5,16,10,16],[6,4,6,15],[7,4,7,6],[7,7,8,9],[7,10,7,15],[8,14,8,15],[9,4,9,6],[9,7,10,7],[9,8,10,8],[9,9,10,9],[9,10,10,10],[9,11,10,11],[9,12,10,12],[9,13,10,13],[9,14,10,14],[9,15,10,15],[41,1,41,15],[43,1,43,16]]}
[null,"Финальная диагностика",{"$nulls":3},"ГРУППА МЛАДШЕГО ВОЗРАСТА (3-4 года)",null,null,"Период проведения - окончание посещения группы младшего возраста"]
[null,"Стартовая диагностика",{"$nulls":3},"ГРУППА СРЕДНЕГО ВОЗРАСТА (4-5 лет)",null,null,"Период проведения - начало уч. года (сентябрь) или начало посещения группы среднего возраста"]
[null,"*- не диагностируется в данном возрасте"]
[null,"Сформированность показателя",{"$nulls":3},"«2» показатель сформирован",null,"«1» показатель в стадии формирования",{"$nulls":3},"«0» показатель не сформирован"]
[null,"Средний уровень",{"$nulls":3},"1,8 - 2,0 норма-высокий",null,"1,0 - 1,7 норма - средний",{"$nulls":3},"0,0 - 0,9 ниже нормы"]
["№","Ф.И. ребенка",null,null,"ОБРАЗОВАТЕЛЬНАЯ ОБЛАСТЬ «ПОЗНАВАТЕЛЬНОЕ  РАЗВИТИЕ»",{"$nulls":11},"СРЕДНИЙ ПОКАЗАТЕЛЬ ПО РЕБЕНКУ"]
[{"$nulls":4},"Показатели возможных достижений (возрастные характеристики) к 4 годам"]
[{"$nulls":4},"Сенсорные эталоны ",null,null,"Познавательные действия",null,null,"Математические представления"]
[{"$nulls":4},"Цвет, оттенки","Форма, геометрические фигуры","Величина",{"$nulls":3},"Количество и счет","Ориентировка во времени","Ориентировка в пространстве","Пространственно-количественные связи и отношения","Сравнение"]
[{"$nulls":4},"Ребенок различает и называет",null,null,"Ребенок владеет осязательно-двигательными действиями: рассматривание, поглаживание, ощупывание, прокатывание, бросание","Ребенок находит сходства при сравнении двух предметов по одному признаку","Ребенок группирует предметы по заданному образцу или словесной инструкции","Ребенок знает, называет, может показать на картинке цифры 1-4, пересчитывает предметы в пределах 4","Ребенок понимает контрастные особенности утра-вечера, дня-ночи.","Ребенок ориентируется в пространстве от себя: впереди-сзади, сверху-снизу, справа-слева","Ребенок понимает: больше-меньше, короче-длиннее, шире-уже, выше-ниже, такие же по размеру, больше-меньше, столько же, поровну, не поровну.","Ребенок использует приемы наложения и приложения","Ребенок уравнивает неравные группы предметов путем добавления одного предмета к меньшей группе или удаления одного предмета из большей группы"]
[{"$nulls":4},"5-6 цветов. 3-4 оттенка ","5-6 геометрических фигур ","большой-маленький, длинный-короткий, высокий-низкий, широкий-узкий"]
[1,{"$nulls":15},{"$f":"AVERAGE(E12:P12)","v":{"$error":"#DIV/0!"}}]
[2,{"$nulls":15},{"$error":"#DIV/0!"}]
[3,{"$nulls":15},{"$error":"#DIV/0!"}]
[4,{"$nulls":15},{"$error":"#DIV/0!"}]
[5,{"$nulls":15},{"$error":"#DIV/0!"}]
[6,{"$nulls":15},{"$error":"#DIV/0!"}]
[7,{"$nulls":15},{"$error":"#DIV/0!"}]
[8,{"$nulls":15},{"$error":"#DIV/0!"}]
[9,{"$nulls":15},{"$error":"#DIV/0!"}]
[10,{"$nulls":15},{"$error":"#DIV/0!"}]
[11,{"$nulls":15},{"$error":"#DIV/0!"}]
[12,{"$nulls":15},{"$error":"#DIV/0!"}]
[13,{"$nulls":15},{"$error":"#DIV/0!"}]
[14,{"$nulls":15},{"$error":"#DIV/0!"}]
[15,{"$nulls":15},{"$error":"#DIV/0!"}]
[16,{"$nulls":15},{"$error":"#DIV/0!"}]
[17,{"$nulls":15},{"$error":"#DIV/0!"}]
[18,{"$nulls":15},{"$error":"#DIV/0!"}]
[19,{"$nulls":15},{"$error":"#DIV/0!"}]
[20,{"$nulls":15},{"$error":"#DIV/0!"}]
[21,{"$nulls":15},{"$error":"#DIV/0!"}]
[22,{"$nulls":15},{"$error":"#DIV/0!"}]
[23,{"$nulls":15},{"$error":"#DIV/0!"}]
[24,{"$nulls":15},{"$error":"#DIV/0!"}]
[25,{"$nulls":15},{"$error":"#DIV/0!"}]
[26,{"$nulls":15},{"$error":"#DIV/0!"}]
[27,{"$nulls":15},{"$error":"#DIV/0!"}]
[28,{"$nulls":15},{"$error":"#DIV/0!"}]
[29,{"$nulls":15},{"$error":"#DIV/0!"}]
[30,{"$nulls":15},{"$error":"#DIV/0!"}]
[null,"СРЕДНИЙ ПОКАЗАТЕЛЬ ПО ГРУППЕ",{"$nulls":14},{"$f":"AVERAGE(Q12:Q41)","v":{"$error":"#DIV/0!"}}]
[null,"Ф.И.О, должность специалиста(ов)____________________________________________________________________________________________________________________________________________________________________________________________________________________________________"]
[null,"© Автор-составитель Кулекина И.А., СПб, 2023"]

{"sheet":"Позн.разв. к 4г ч2","index":5,"n_rows":44,"n_cols":19,"rows_kept":44,"merged":[[0,0,0,1],[0,4,0,5],[0,7,0,14],[1,0,1,3],[1,4,1,5],[1,7,1,14],[2,0,2,3],[3,0,3,1],[3,4,3,5],[3,6,3,8],[3,9,3,11],[4,0,4,1],[4,4,4,5],[4,6,4,8],[4,9,4,11],[5,0,10,0],[5,1,10,1],[5,4,5,17],[5,18,10,18],[6,4,6,17],[7,4,7,7],[7,8,7,17],[8,8,8,14],[8,15,8,17],[9,4,9,5],[9,6,10,6],[9,7,10,7],[9,8,9,14],[9,15,10,15],[9,16,10,16],[9,17,10,17],[41,1,41,17],[42,1,42,18],[43,1,43,18]]}
["Финальная диагностика",{"$nulls":3},"ГРУППА МЛАДШЕГО ВОЗРАСТА (3-4 года)",null,null,"Период проведения - окончание посещения группы младшего возраста"]
["Стартовая диагностика",{"$nulls":3},"ГРУППА СРЕДНЕГО ВОЗРАСТА (4-5 лет)",null,null,"Период проведения - начало уч. года (сентябрь) или начало посещения группы среднего возраста"]
["*- не диагностируется в данном возрасте"]
["Сформированность показателя",{"$nulls":3},"«2» показатель сформирован",null,"«1» показатель в стадии формирования",null,null,"«0» показатель не сформирован"]
["Средний уровень",{"$nulls":3},"1,8 - 2,0 норма-высокий",null,"1,0 - 1,7 норма - средний",null,null,"0,0 - 0,9 ниже нормы"]
["№","Ф.И. ребенка",null,null,"ОБРАЗОВАТЕЛЬНАЯ ОБЛАСТЬ «ПОЗНАВАТЕЛЬНОЕ  РАЗВИТИЕ»",{"$nulls":13},"СРЕДНИЙ ПОКАЗАТЕЛЬ ПО РЕБЕНКУ"]
[{"$nulls":4},"Показатели возможных достижений (возрастные характеристики) к 4 годам"]
[{"$nulls":4},"Окружающий мир",{"$nulls":3},"Природа "]
[{"$nulls":4},"Труд взрослых, профессии","Предметный мир","Я- сам, человек","Семья","Объекты живой природы",{"$nulls":6},"Объекты неживой природы, природные явления"]
[{"$nulls":4},"Ребенок имеет представления, может показать на картинке и в естественной среде, может рассказать",null,"ребенок знает свои люибимые занятия, может рассказать о них","Ребенок знает имена членов своей семьи ","Ребенок имеет представления, может показать на картинке и в естественной среде, может назвать",{"$nulls":6},"Ребенок имеет представления о некоторых свойствах воды, песка, глины, камней","Ребенок может выделить признаки времен года","Ребенок соблюдает правила поведения в природе"]
[{"$nulls":4},"о труде работников ДОУ","виды транспорта (4-5)",null,null,"домашних животных и их детенышей (5-6 видов)","диких животных и их детенышей (5-6 видов)","растения (5-6 видов)"," деревья, кустарники (5-6 видов)","фрукты (5-6 видов)","овощи (5-6 видов)","ягоды (5-6 видов)"]
[1,{"$nulls":17},{"$f":"AVERAGE(E12:R12)","v":{"$error":"#DIV/0!"}}]
[2,{"$nulls":17},{"$error":"#DIV/0!"}]
[3,{"$nulls":17},{"$error":"#DIV/0!"}]
[4,{"$nulls":17},{"$error":"#DIV/0!"}]
[5,{"$nulls":17},{"$error":"#DIV/0!"}]
[6,{"$nulls":17},{"$error":"#DIV/0!"}]
[7,{"$nulls":17},{"$error":"#DIV/0!"}]
[8,{"$nulls":17},{"$error":"#DIV/0!"}]
[9,{"$nulls":17},{"$error":"#DIV/0!"}]
[10,{"$nulls":17},{"$error":"#DIV/0!"}]
[11,{"$nulls":17},{"$error":"#DIV/0!"}]
[12,{"$nulls":17},{"$error":"#DIV/0!"}]
[13,{"$nulls":17},{"$error":"#DIV/0!"}]
[14,{"$nulls":17},{"$error":"#DIV/0!"}]
[15,{"$nulls":17},{"$error":"#DIV/0!"}]
[16,{"$nulls":17},{"$error":"#DIV/0!"}]
[17,{"$nulls":17},{"$error":"#DIV/0!"}]
[18,{"$nulls":17},{"$error":"#DIV/0!"}]
[19,{"$nulls":17},{"$error":"#DIV/0!"}]
[20,{"$nulls":17},{"$error":"#DIV/0!"}]
[21,{"$nulls":17},{"$error":"#DIV/0!"}]
[22,{"$nulls":17},{"$error":"#DIV/0!"}]
[23,{"$nulls":17},{"$error":"#DIV/0!"}]
[24,{"$nulls":17},{"$error":"#DIV/0!"}]
[25,{"$nulls":17},{"$error":"#DIV/0!"}]
[26,{"$nulls":17},{"$error":"#DIV/0!"}]
[27,{"$nulls":17},{"$error":"#DIV/0!"}]
[28,{"$nulls":17},{"$error":"#DIV/0!"}]
[29,{"$nulls":17},{"$error":"#DIV/0!"}]
[30,{"$nulls":17},{"$error":"#DIV/0!"}]
[null,"СРЕДНИЙ ПОКАЗАТЕЛЬ ПО ГРУППЕ",{"$nulls":16},{"$f":"AVERAGE(S12:S41)","v":{"$error":"#DIV/0!"}}]
[null,"Ф.И.О, должность специалиста(ов)____________________________________________________________________________________________________________________________________________________________________________________________________________________________________"]
[null,"© Автор-составитель Кулекина И.А., СПб, 2023"]

{"sheet":"Реч.разв.к 4г ч1","index":6,"n_rows":43,"n_cols":16,"rows_kept":43,"merged":[[0,0,0,1],[0,4,0,5],[0,7,0,15],[1,0,1,3],[1,4,1,5],[1,7,1,15],[2,0,2,3],[3,0,3,1],[3,5,3,6],[3,7,3,10],[4,0,4,1],[4,5,4,6],[4,7,4,10],[5,0,9,0],[5,1,9,1],[5,4,5,14],[5,15,9,15],[6,4,6,14],[7,5,7,6],[7,7,7,14],[8,4,9,4],[8,5,9,5],[8,6,9,6],[8,7,9,7],[8,8,9,8],[8,9,9,9],[8,10,9,10],[8,11,9,11],[8,12,9,12],[8,13,9,13],[8,14,9,14],[40,1,40,14],[42,1,42,15]]}
["Финальная диагностика",{"$nulls":3},"ГРУППА МЛАДШЕГО ВОЗРАСТА (3-4 года)",null,null,"Период проведения - окончание посещения группы младшего возраста"]
["Стартовая диагностика",{"$nulls":3},"ГРУППА СРЕДНЕГО ВОЗРАСТА (4-5 лет)",null,null,"Период проведения - начало уч. года (сентябрь) или начало посещения группы среднего возраста"]
["*- не диагностируется в данном возрасте"]
["Сформированность показателя",{"$nulls":3},"«2» показатель сформирован","«1» показатель в стадии формирования",null,"«0» показатель не сформирован"]
["Средний уровень",{"$nulls":3},"1,8 - 2,0 норма-высокий","1,0 - 1,7 норма - средний",null,"0,0 - 0,9 ниже нормы"]
["№","Ф.И. ребенка",null,null,"ОБРАЗОВАТЕЛЬНАЯ ОБЛАСТЬ «РЕЧЕВОЕ  РАЗВИТИЕ»",{"$nulls":10},"СРЕДНИЙ ПОКАЗАТЕЛЬ ПО РЕБЕНКУ"]
[{"$nulls":4},"Показатели возможных достижений (возрастные характеристики) к 4 годам"]
[{"$nulls":4},"Общее речевое развитие","Звуковая культура речи",null,"Грамматический строй"]
[{"$nulls":4},"Ребенок проявляет речевую активность","Ребенок правильно произносит гласные звуки","Ребенок правильно произносит твердые и мягкие согласные звуки: м, б, п, т, д, н, к, г, х, ф, л, с, ц","Ребенок использует в речи и правильно согласовывает прил-е и сущ-е в роде, падеже","Ребенок использует в речи и правильно употребляет сущ-е с предлогами (в, на, под, за)","Ребенок использует в речи названия животных и их детенышей в ед.ч и мн.ч.","Ребенок составляет простое распространённое предложение и с помощью педагога строит сложные предложения","Ребенок владеет разными способами словообразования (с помощью суффиксов)","Ребенок образовывает повелительную форму глаголов (беги, лови и т.д.)","Ребенок использует приставочный способ для образования глаголов (вошел – вышел)","Ребенок образовывает звукоподражательные глаголы (чирикает)"]
[]
[1,{"$nulls":14},{"$f":"AVERAGE(E11:O11)+P11:P28F5P11:P42","v":{"$error":"#DIV/0!"}}]
[2,{"$nulls":14},{"$f":"AVERAGE(E12:O12)","v":{"$error":"#DIV/0!"}}]
[3,{"$nulls":14},{"$f":"AVERAGE(E13:O13)","v":{"$error":"#DIV/0!"}}]
[4,{"$nulls":14},{"$f":"AVERAGE(E14:O14)","v":{"$error":"#DIV/0!"}}]
[5,{"$nulls":14},{"$f":"AVERAGE(E15:O15)","v":{"$error":"#DIV/0!"}}]
[6,{"$nulls":14},{"$f":"AVERAGE(E16:O16)","v":{"$error":"#DIV/0!"}}]
[7,{"$nulls":14},{"$f":"AVERAGE(E17:O17)","v":{"$error":"#DIV/0!"}}]
[8,{"$nulls":14},{"$f":"AVERAGE(E18:O18)","v":{"$error":"#DIV/0!"}}]
[9,{"$nulls":14},{"$f":"AVERAGE(E19:O19)","v":{"$error":"#DIV/0!"}}]
[10,{"$nulls":14},{"$f":"AVERAGE(E20:O20)","v":{"$error":"#DIV/0!"}}]
[11,{"$nulls":14},{"$f":"AVERAGE(E21:O21)","v":{"$error":"#DIV/0!"}}]
[12,{"$nulls":14},{"$f":"AVERAGE(E22:O22)","v":{"$error":"#DIV/0!"}}]
[13,{"$nulls":14},{"$f":"AVERAGE(E23:O23)","v":{"$error":"#DIV/0!"}}]
[14,{"$nulls":14},{"$f":"AVERAGE(E24:O24)","v":{"$error":"#DIV/0!"}}]
[15,{"$nulls":14},{"$f":"AVERAGE(E25:O25)","v":{"$error":"#DIV/0!"}}]
[16,{"$nulls":14},{"$f":"AVERAGE(E26:O26)","v":{"$error":"#DIV/0!"}}]
[17,{"$nulls":14},{"$f":"AVERAGE(E27:O27)","v":{"$error":"#DIV/0!"}}]
[18,{"$nulls":14},{"$f":"AVERAGE(E28:O28)","v":{"$error":"#DIV/0!"}}]
[19,{"$nulls":14},{"$f":"AVERAGE(E29:O29)","v":{"$error":"#DIV/0!"}}]
[20,{"$nulls":14},{"$f":"AVERAGE(E30:O30)","v":{"$error":"#DIV/0!"}}]
[21,{"$nulls":14},{"$f":"AVERAGE(E31:O31)","v":{"$error":"#DIV/0!"}}]
[22,{"$nulls":14},{"$f":"AVERAGE(E32:O32)","v":{"$error":"#DIV/0!"}}]
[23,{"$nulls":14},{"$f":"AVERAGE(E33:O33)","v":{"$error":"#DIV/0!"}}]
[24,{"$nulls":14},{"$f":"AVERAGE(E34:O34)","v":{"$error":"#DIV/0!"}}]
[25,{"$nulls":14},{"$f":"AVERAGE(E35:O35)","v":{"$error":"#DIV/0!"}}]
[26,{"$nulls":14},{"$f":"AVERAGE(E36:O36)","v":{"$error":"#DIV/0!"}}]
[27,{"$nulls":14},{"$f":"AVERAGE(E37:O37)","v":{"$error":"#DIV/0!"}}]
[28,{"$nulls":14},{"$f":"AVERAGE(E38:O38)","v":{"$error":"#DIV/0!"}}]
[29,{"$nulls":14},{"$f":"AVERAGE(E39:O39)","v":{"$error":"#DIV/0!"}}]
[30,{"$nulls":14},{"$f":"AVERAGE(E40:O40)","v":{"$error":"#DIV/0!"}}]
[null,"СРЕДНИЙ ПОКАЗАТЕЛЬ ПО ГРУППЕ",{"$nulls":13},{"$f":"AVERAGE(P11:P40)","v":{"$error":"#DIV/0!"}}]
[null,"Ф.И.О, должность специалиста(ов)____________________________________________________________________________________________________________________________________________________________________________________________________________________________________"]
[null,"© Автор-составитель Кулекина И.А., СПб, 2023"]

{"sheet":"Худ.эст.к 4г ч1","index":7,"n_rows":44,"n_cols":16,"rows_kept":44,"merged":[[0,0,0,1],[0,4,0,5],[0,7,0,11],[1,0,1,3],[1,4,1,5],[1,7,1,13],[2,0,2,3],[3,0,3,1],[3,4,3,5],[3,6,3,7],[3,8,3,10],[4,0,4,1],[4,4,4,5],[4,6,4,7],[4,8,4,10],[5,0,10,0],[5,1,10,1],[5,4,5,14],[5,15,10,15],[6,4,6,14],[7,4,7,14],[8,4,8,6],[8,8,8,10],[8,14,10,14],[9,4,10,4],[9,5,10,5],[9,6,10,6],[9,7,10,7],[9,8,10,8],[9,9,10,9],[9,10,10,10],[9,11,10,11],[9,12,10,12],[9,13,10,13],[41,1,41,14],[42,1,42,15],[43,1,43,15]]}
["Финальная диагностика",{"$nulls":3},"ГРУППА МЛАДШЕГО ВОЗРАСТА (3-4 года)",null,null,"Период проведения - окончание посещения группы младшего возраста"]
["Стартовая диагностика",{"$nulls":3},"ГРУППА СРЕДНЕГО ВОЗРАСТА (4-5 лет)",null,null,"Период проведения - начало уч. года (сентябрь) или начало посещения группы среднего возраста"]
["*- не диагностируется в данном возрасте"]
["Сформированность показателя",{"$nulls":3},"«2» показатель сформирован",null,"«1» показатель в стадии формирования",null,"«0» показатель не сформирован"]
["Средний уровень",{"$nulls":3},"1,8 - 2,0 норма-высокий",null,"1,0 - 1,7 норма - средний",null,"0,0 - 0,9 ниже нормы"]
["№","Ф.И. ребенка",null,null,"ОБРАЗОВАТЕЛЬНАЯ ОБЛАСТЬ «ХУДОЖЕСТВЕННО-ЭСТЕТИЧЕСКОЕ РАЗВИТИЕ»",{"$nulls":10},"СРЕДНИЙ ПОКАЗАТЕЛЬ ПО РЕБЕНКУ"]
[{"$nulls":4},"Показатели возможных достижений (возрастные характеристики) к 4 годам"]
[{"$nulls":4},"Музыкальная деятельность"]
[{"$nulls":4},"Слушание",null,null,"Пение ","Музыкально-ритмические движения",null,null,"Песенное творчество","Театрализованная деятельность","Игра на детских музыкальных инструментах","Танцевально-игровое творчество*"]
[{"$nulls":4},"Ребенок дослушивает музыкальное произведение до конца, понимает характер музыки, узнает и определяет, сколько частей в произведении","Ребенок различает звуки по высоте в пределах октавы – септимы, замечает изменение в силе звучания мелодии (громко-тихо)","Ребенок различает звучание детских музыкальных инструментов (музыкальный молоточек, шарманка, погремушка, барабан, бубен, металлофон и др.)","Ребенок поет без напряжения в диапазоне ре (ми) – ля (си), в одном темпе со всеми, чисто и ясно","Ребенок выполняет притопывание попеременно двумя ногами и одной ногой","Ребенок , кружится в парах","Ребенок выполняет  выполняет прямой галоп","Ребенок допевает мелодии колыбельных песен ","Ребенок имеет представления о различных видах театра (настольный, плоскостной и др.), использует их в самостоятельной игровой деятельности","Ребенок подыгрывает на детских ударных музыкальных инструментах"]
[]
[1,{"$nulls":13},"*",{"$f":"AVERAGE(F12:O12)","v":{"$error":"#DIV/0!"}}]
[2,{"$nulls":13},"*",{"$error":"#DIV/0!"}]
[3,{"$nulls":13},"*",{"$error":"#DIV/0!"}]
[4,{"$nulls":13},"*",{"$error":"#DIV/0!"}]
[5,{"$nulls":13},"*",{"$error":"#DIV/0!"}]
[6,{"$nulls":13},"*",{"$error":"#DIV/0!"}]
[7,{"$nulls":13},"*",{"$error":"#DIV/0!"}]
[8,{"$nulls":13},"*",{"$error":"#DIV/0!"}]
[9,{"$nulls":13},"*",{"$error":"#DIV/0!"}]
[10,{"$nulls":13},"*",{"$error":"#DIV/0!"}]
[11,{"$nulls":13},"*",{"$error":"#DIV/0!"}]
[12,{"$nulls":13},"*",{"$error":"#DIV/0!"}]
[13,{"$nulls":13},"*",{"$error":"#DIV/0!"}]
[14,{"$nulls":13},"*",{"$error":"#DIV/0!"}]
[15,{"$nulls":13},"*",{"$error":"#DIV/0!"}]
[16,{"$nulls":13},"*",{"$error":"#DIV/0!"}]
[17,{"$nulls":13},"*",{"$error":"#DIV/0!"}]
[18,{"$nulls":13},"*",{"$error":"#DIV/0!"}]
[19,{"$nulls":13},"*",{"$error":"#DIV/0!"}]
[20,{"$nulls":13},"*",{"$error":"#DIV/0!"}]
[21,{"$nulls":13},"*",{"$error":"#DIV/0!"}]
[22,{"$nulls":13},"*",{"$error":"#DIV/0!"}]
[23,{"$nulls":13},"*",{"$error":"#DIV/0!"}]
[24,{"$nulls":13},"*",{"$error":"#DIV/0!"}]
[25,{"$nulls":13},"*",{"$error":"#DIV/0!"}]
[26,{"$nulls":13},"*",{"$error":"#DIV/0!"}]
[27,{"$nulls":13},"*",{"$error":"#DIV/0!"}]
[28,{"$nulls":13},"*",{"$error":"#DIV/0!"}]
[29,{"$nulls":13},"*",{"$error":"#DIV/0!"}]
[30,{"$nulls":13},"*",{"$error":"#DIV/0!"}]
[null,"СРЕДНИЙ ПОКАЗАТЕЛЬ ПО ГРУППЕ",{"$nulls":13},{"$f":"AVERAGE(P12:P41)","v":{"$error":"#DIV/0!"}}]
[null,"Ф.И.О, должность специалиста(ов)____________________________________________________________________________________________________________________________________________________________________________________________________________________________________"]
[null,"© Автор-составитель Кулекина И.А., СПб, 2023"]

{"sheet":"Худ.эст.к 4г ч2","index":8,"n_rows":44,"n_cols":16,"rows_kept":44,"merged":[[0,0,0,1],[0,4,0,5],[0,8,0,12],[1,0,1,3],[1,4,1,5],[1,8,1,14],[2,0,2,3],[3,0,3,1],[3,4,3,5],[3,6,3,8],[3,9,3,11],[4,0,4,1],[4,4,4,5],[4,6,4,8],[4,9,4,11],[5,0,10,0],[5,1,10,1],[5,4,5,14],[5,15,10,15],[6,4,6,14],[7,4,7,11],[7,12,8,12],[7,13,8,14],[8,4,8,5],[8,6,8,8],[8,11,10,11],[9,4,10,4],[9,5,10,5],[9,6,10,6],[9,7,10,7],[9,8,10,8],[9,9,10,9],[9,10,10,10],[9,12,10,12],[9,13,10,13],[9,14,10,14],[41,1,41,14],[42,1,42,15],[43,1,43,15]]}
["Финальная диагностика",{"$nulls":3},"ГРУППА МЛАДШЕГО ВОЗРАСТА (3-4 года)",{"$nulls":3},"Период проведения - окончание посещения группы младшего возраста"]
["Стартовая диагностика",{"$nulls":3},"ГРУППА СРЕДНЕГО ВОЗРАСТА (4-5 лет)",{"$nulls":3},"Период проведения - начало уч. года (сентябрь) или начало посещения группы среднего возраста"]
["*- не диагностируется в данном возрасте"]
["Сформированность показателя",{"$nulls":3},"«2» показатель сформирован",null,"«1» показатель в стадии формирования",null,null,"«0» показатель не сформирован"]
["Средний уровень",{"$nulls":3},"1,8 - 2,0 норма-высокий",null,"1,0 - 1,7 норма - средний",null,null,"0,0 - 0,9 ниже нормы"]
[null,"Ф.И. ребенка",null,null,"ОБРАЗОВАТЕЛЬНАЯ ОБЛАСТЬ «ХУДОЖЕСТВЕННО-ЭСТЕТИЧЕСКОЕ РАЗВИТИЕ»",{"$nulls":10},"СРЕДНИЙ ПОКАЗАТЕЛЬ ПО РЕБЕНКУ"]
[{"$nulls":4},"Показатели возможных достижений (возрастные характеристики) к 4 годам"]
[{"$nulls":4},"Изобразительная деятельность",{"$nulls":7},"Приобщение к искусству","Конструктивная деятельность"]
[{"$nulls":4},"Рисование ",null,"Лепка ",null,null,"Аппликация ","Народное ДПИ","Прикладное творчество*"]
[{"$nulls":4},"Ребенок может ритмично нанести линии, штрихи, пятна, мазки","Ребенок может создать несложную сюжетную композицию, повторяя изображение одного предмета","Ребенок владеет способами лепки: раскатывание прямыми и круговыми движениями, соединение, сплющивание, сминание, прижимание","Ребенок может слепить несложный предмет, состоящий из 2-3 частей","Ребенок украшает вылепленный предмет","Ребенок правильно и аккуратно пользуется клеем","Ребенок имеет представления о дымковской игрушке, элементах дымковской росписи",null,"Ребенок отображает впечатления в продуктивных видах деятельности","Ребенок может изменять постройки двумя способами: заменяя одни детали другими или надстраивая их в высоту, длину","Ребенок сооружает постройки по собственному замыслу, обыгрывает их"]
[]
[1,{"$nulls":10},"*",{"$nulls":3},{"$f":"AVERAGE(F12:O12)","v":{"$error":"#DIV/0!"}}]
[2,{"$nulls":10},"*",{"$nulls":3},{"$error":"#DIV/0!"}]
[3,{"$nulls":10},"*",{"$nulls":3},{"$error":"#DIV/0!"}]
[4,{"$nulls":10},"*",{"$nulls":3},{"$error":"#DIV/0!"}]
[5,{"$nulls":10},"*",{"$nulls":3},{"$error":"#DIV/0!"}]
[6,{"$nulls":10},"*",{"$nulls":3},{"$error":"#DIV/0!"}]
[7,{"$nulls":10},"*",{"$nulls":3},{"$error":"#DIV/0!"}]
[8,{"$nulls":10},"*",{"$nulls":3},{"$error":"#DIV/0!"}]
[9,{"$nulls":10},"*",{"$nulls":3},{"$error":"#DIV/0!"}]
[10,{"$nulls":10},"*",{"$nulls":3},{"$error":"#DIV/0!"}]
[11,{"$nulls":10},"*",{"$nulls":3},{"$error":"#DIV/0!"}]
[12,{"$nulls":10},"*",{"$nulls":3},{"$error":"#DIV/0!"}]
[13,{"$nulls":10},"*",{"$nulls":3},{"$error":"#DIV/0!"}]
[14,{"$nulls":10},"*",{"$nulls":3},{"$error":"#DIV/0!"}]
[15,{"$nulls":10},"*",{"$nulls":3},{"$error":"#DIV/0!"}]
[16,{"$nulls":10},"*",{"$nulls":3},{"$error":"#DIV/0!"}]
[17,{"$nulls":10},"*",{"$nulls":3},{"$error":"#DIV/0!"}]
[18,{"$nulls":10},"*",{"$nulls":3},{"$error":"#DIV/0!"}]
[19,{"$nulls":10},"*",{"$nulls":3},{"$error":"#DIV/0!"}]
[20,{"$nulls":10},"*",{"$nulls":3},{"$error":"#DIV/0!"}]
[21,{"$nulls":10},"*",{"$nulls":3},{"$error":"#DIV/0!"}]
[22,{"$nulls":10},"*",{"$nulls":3},{"$error":"#DIV/0!"}]
[23,{"$nulls":10},"*",{"$nulls":3},{"$error":"#DIV/0!"}]
[24,{"$nulls":10},"*",{"$nulls":3},{"$error":"#DIV/0!"}]
[25,{"$nulls":10},"*",{"$nulls":3},{"$error":"#DIV/0!"}]
[26,{"$nulls":10},"*",{"$nulls":3},{"$error":"#DIV/0!"}]
[27,{"$nulls":10},"*",{"$nulls":3},{"$error":"#DIV/0!"}]
[28,{"$nulls":10},"*",{"$nulls":3},{"$error":"#DIV/0!"}]
[29,{"$nulls":10},"*",{"$nulls":3},{"$error":"#DIV/0!"}]
[30,{"$nulls":10},"*",{"$nulls":3},{"$error":"#DIV/0!"}]
[null,"СРЕДНИЙ ПОКАЗАТЕЛЬ ПО ГРУППЕ",{"$nulls":13},{"$f":"AVERAGE(P12:P41)","v":{"$error":"#DIV/0!"}}]
[null,"Ф.И.О, должность специалиста(ов)____________________________________________________________________________________________________________________________________________________________________________________________________________________________________"]
[null,"© Автор-составитель Кулекина И.А., СПб, 2023"]